bitfinex/quotes_SOLUSD_20251125
["timestamp","ask_amount","ask_price","bid_price","bid_amount"]
[1764087445889,11.35786239,135.68,135.64,7.37201077]
[1764087446172,0.7,135.68,135.65,10.65786239]
[1764087446481,0.7,135.67,135.66,10.65786239]
[1764087446665,0.7,135.67,135.65,10.65786239]
[1764087446973,0.7,135.67,135.64,18.02987316]
[1764087447373,0.7,135.67,135.65,10.65786239]
[1764087447769,0.7,135.68,135.66,10.65786239]
[1764087447972,0.7,135.67,135.66,10.65786239]
[1764087448272,0.7,135.67,135.65,10.65786239]
[1764087448465,0.7,135.67,135.66,10.65786239]
[1764087449263,0.7,135.67,135.64,25.80315202]
[1764087449264,0.7,135.67,135.65,10.65786239]
[1764087449461,0.7,135.67,135.65,7.37175623]
[1764087449677,0.7,135.67,135.65,18.02961862]
[1764087449881,0.7,135.67,135.64,7.37232722]
[1764087450179,0.7,135.67,135.65,10.65786239]
[1764087450559,8.80994492,135.66,135.63,10.65786239]
[1764087450767,10.65786239,135.65,135.6,10.65786239]
[1764087450960,11.35786239,135.65,135.6,10.65786239]
[1764087451162,0.7,135.64,135.6,10.65786239]
[1764087451364,11.35786239,135.64,135.59,10.65786239]
[1764087451567,0.7,135.64,135.6,10.65786239]
[1764087451769,0.7,135.63,135.59,10.65786239]
[1764087452479,11.35786239,135.63,135.59,10.65786239]
[1764087452789,8.80994492,135.62,135.57,10.65786239]
[1764087452963,9.50994492,135.62,135.58,10.65786239]
[1764087453267,8.80994492,135.58,135.52,7.37877889]
[1764087453462,10.65786239,135.57,135.52,10.65786239]
[1764087453677,0.7,135.59,135.55,10.65786239]
[1764087453868,11.35786239,135.59,135.54,10.65786239]
[1764087454079,0.7,135.59,135.56,10.65786239]
[1764087454271,0.7,135.59,135.57,10.65786239]
[1764087454669,3.98,135.61,135.57,10.65786239]
[1764087454865,0.7,135.6,135.57,10.65786239]
[1764087455173,8.80994492,135.59,135.53,16.308864]
[1764087455373,19.46780731,135.59,135.54,18.03575821]
[1764087455679,0.7,135.58,135.54,18.03575821]
[1764087455866,0.7,135.58,135.55,10.65786239]
[1764087456689,19.46780731,135.57,135.52,10.65786239]
[1764087456892,10.65786239,135.56,135.52,18.03662967]
[1764087457099,0.7,135.56,135.52,18.03662967]
[1764087457402,0.7,135.55,135.54,18.03575821]
[1764087457687,0.7,135.58,135.54,36.48049777]
[1764087457897,0.7,135.58,135.56,10.65786239]
[1764087458095,19.46780731,135.57,135.5,16.308864]
[1764087458387,19.46780731,135.57,135.53,10.65786239]
[1764087458699,0.7,135.56,135.53,10.65786239]
[1764087459168,14.63786239,135.56,135.49,18.45086876]
[1764087459363,10.65786239,135.54,135.49,10.65786239]
[1764087459563,10.65786239,135.52,135.48,7.38116327]
[1764087459870,10.65786239,135.52,135.47,29.11174945]
[1764087459871,10.65786239,135.51,135.47,10.65786239]
[1764087460069,11.35786239,135.51,135.46,10.65786239]
[1764087460287,10.65786239,135.49,135.44,7.38322023]
[1764087460503,10.65786239,135.48,135.43,18.04158634]
[1764087460795,0.7,135.48,135.43,7.38372395]
[1764087460960,19.46780731,135.49,135.44,10.65786239]
[1764087460961,0.7,135.47,135.44,10.65786239]
[1764087461164,11.35786239,135.47,135.43,7.38372395]
[1764087461581,0.7,135.46,135.42,18.04219372]
[1764087461996,0.7,135.46,135.42,7.38433133]
[1764087462392,0.7,135.46,135.42,18.04219372]
[1764087462609,0.7,135.46,135.42,14.19894749]
[1764087462798,7.51461616,135.46,135.42,7.38433133]
[1764087463304,7.51461616,135.45,135.4,16.308864]
[1764087463491,6.81461616,135.44,135.4,7.38507645]
[1764087463706,7.51461616,135.44,135.4,7.38507645]
[1764087464008,0.7,135.43,135.4,14.19969261]
[1764087464165,0.7,135.43,135.41,6.81461616]
[1764087464991,0.7,135.43,135.4,32.66350354]
[1764087465198,0.7,135.43,135.41,6.81461616]
[1764087465399,0.7,135.43,135.4,25.84888738]
[1764087465570,0.7,135.43,135.42,7.38443361]
[1764087465773,0.7,135.45,135.42,14.19904977]
[1764087466074,3.98,135.48,135.44,6.81461616]
[1764087466276,0.7,135.47,135.45,6.81461616]
[1764087467383,3.28,135.48,135.46,6.81461616]
[1764087467571,3.98,135.48,135.45,6.81461616]
[1764087467779,7.51461616,135.47,135.42,25.27523614]
[1764087468182,0.7,135.46,135.42,25.27523614]
[1764087468496,0.7,135.46,135.43,6.81461616]
[1764087468800,0.7,135.46,135.42,25.27523614]
[1764087468978,0.7,135.46,135.42,6.81461616]
[1764087469996,0.7,135.46,135.42,14.19857918]
[1764087470500,0.7,135.46,135.42,32.65966321]
[1764087470799,0.7,135.46,135.44,6.81461616]
[1764087471101,0.7,135.46,135.43,6.81461616]
[1764087471876,0.7,135.46,135.44,7.38334317]
[1764087472606,10.09461616,135.48,135.44,7.38334317]
[1764087472607,3.98,135.48,135.45,6.81461616]
[1764087472804,0.7,135.47,135.45,6.81461616]
[1764087473185,0.7,135.47,135.44,32.65631727]
[1764087473490,3.28,135.48,135.46,6.81461616]
[1764087473698,3.95,135.48,135.44,25.84170111]
[1764087473872,3.95,135.48,135.42,3.96]
[1764087473873,9.47994492,135.47,135.42,18.46041229]
[1764087474202,9.47994492,135.47,135.43,6.81461616]
[1764087474395,0.67,135.46,135.43,6.81461616]
[1764087474704,0.67,135.46,135.41,14.19959511]
[1764087474705,8.80994492,135.45,135.41,14.19959511]
[1764087475191,0.67,135.44,135.41,14.19959511]
[1764087475514,0.67,135.44,135.42,6.81461616]
[1764087475719,9.47994492,135.47,135.43,6.81461616]
[1764087475903,0.67,135.46,135.43,6.81461616]
[1764087476573,0.67,135.46,135.43,7.38367074]
[1764087478096,8.80994492,135.45,135.42,7.38422092]
[1764087478609,0.67,135.44,135.4,14.19969191]
[1764087479483,3.95,135.44,135.4,14.19969191]
[1764087479687,3.95,135.44,135.4,7.38507575]
[1764087479688,10.76461616,135.44,135.4,7.38507575]
[1764087479913,0.71,135.43,135.4,7.38507575]
[1764087480381,6.81461616,135.41,135.39,0.2]
[1764087480582,18.90456108,135.4,135.39,0.2]
[1764087480811,19.61456108,135.4,135.34,6.81461616]
[1764087481106,0.71,135.39,135.35,6.81461616]
[1764087481312,6.81461616,135.38,135.33,18.47279957]
[1764087481607,6.81461616,135.38,135.33,25.28741573]
[1764087481818,0.71,135.37,135.34,6.81461616]
[1764087481996,7.52461616,135.37,135.32,7.38989062]
[1764087482191,7.52461616,135.37,135.32,14.20450678]
[1764087482412,0.71,135.37,135.35,7.38825267]
[1764087483606,8.80994492,135.39,135.36,6.81461616]
[1764087483811,0.71,135.38,135.36,6.81461616]
[1764087484189,8.80994492,135.39,135.36,6.81461616]
[1764087484394,0.71,135.43,135.39,7.38606987]
[1764087484592,0.71,135.42,135.4,6.81461616]
[1764087485100,0.71,135.42,135.39,14.20068603]
[1764087486407,0.71,135.42,135.4,6.81461616]
[1764087486608,3.28,135.43,135.41,7.38497895]
[1764087486811,3.99,135.43,135.41,7.38497895]
[1764087486986,0.71,135.42,135.41,7.38497895]
[1764087488306,0.71,135.42,135.39,6.81461616]
[1764087488914,9.51994492,135.42,135.39,6.81461616]
[1764087489124,9.51994492,135.42,135.38,6.81461616]
[1764087489319,0.71,135.41,135.38,6.81461616]
[1764087489517,0.71,135.41,135.39,6.81461616]
[1764087489906,3.28,135.43,135.39,68.61461616]
[1764087490115,3.99,135.44,135.41,6.81461616]
[1764087490710,0.71,135.43,135.41,6.81461616]
[1764087491016,0.71,135.43,135.42,7.38443361]
[1764087491221,0.71,135.42,135.41,69.18473143]
[1764087491813,0.71,135.42,135.41,61.8]
[1764087492525,0.71,135.42,135.41,69.18497895]
[1764087493428,3.28,135.44,135.41,75.99959511]
[1764087493629,3.99,135.44,135.42,6.81461616]
[1764087494006,3.99,135.44,135.41,94.46204249]
[1764087494314,3.99,135.44,135.42,6.81461616]
[1764087495102,3.99,135.44,135.41,94.46204249]
[1764087496703,3.99,135.44,135.41,75.99959511]
[1764087497032,8.80994492,135.41,135.35,14.20286883]
[1764087497207,3.99,135.4,135.36,6.81461616]
[1764087497407,8.80994492,135.42,135.39,6.81461616]
[1764087497906,0.71,135.41,135.39,6.81461616]
[1764087498516,0.71,135.41,135.36,65.77]
[1764087498731,0.71,135.41,135.38,6.81461616]
[1764087499312,3.28,135.43,135.4,6.81461616]
[1764087499514,3.28,135.43,135.41,6.81461616]
[1764087499714,3.94,135.43,135.41,6.81461616]
[1764087500027,3.28,135.43,135.42,6.81461616]
[1764087501131,3.28,135.43,135.41,6.81461616]
[1764087501517,3.28,135.43,135.42,7.38443361]
[1764087502021,3.94,135.43,135.42,7.38443361]
[1764087502222,3.28,135.43,135.42,7.38443361]
[1764087502419,3.94,135.43,135.42,7.38443361]
[1764087503331,3.28,135.43,135.42,14.19904977]
[1764087503514,0.71,135.46,135.42,95.1201338]
[1764087503720,0.71,135.46,135.44,6.81461616]
[1764087504333,0.71,135.46,135.42,87.64551764]
[1764087504524,12.08994492,135.47,135.45,6.81461616]
[1764087504724,12.79994492,135.47,135.45,6.81461616]
[1764087505230,0.71,135.46,135.43,61.8]
[1764087505534,0.71,135.46,135.43,75.99831189]
[1764087506335,0.71,135.46,135.43,94.45803277]
[1764087507034,0.71,135.46,135.43,68.61461616]
[1764087507227,0.71,135.46,135.43,69.18372254]
[1764087507808,0.71,135.46,135.43,94.45805958]
[1764087508442,12.08994492,135.47,135.43,87.64344342]
[1764087508611,3.99,135.47,135.43,94.45805958]
[1764087508807,3.99,135.47,135.44,6.81461616]
[1764087509056,0.71,135.5,135.44,62.46]
[1764087509342,0.71,135.49,135.45,6.81461616]
[1764087509638,0.71,135.49,135.46,7.38225306]
[1764087510333,7.52461616,135.49,135.45,7.38256266]
[1764087510515,8.80994492,135.48,135.45,7.38256266]
[1764087510723,9.51994492,135.48,135.45,7.38256266]
[1764087510913,0.71,135.47,135.45,7.38256266]
[1764087511108,0.71,135.47,135.45,69.18256266]
[1764087511532,0.71,135.49,135.45,75.99717882]
[1764087512034,0.71,135.49,135.45,94.45417402]
[1764087512625,7.52461616,135.49,135.45,75.99717882]
[1764087512831,7.52461616,135.49,135.45,94.45417402]
[1764087513329,200.97682036,135.59,135.48,6.81461616]
[1764087513638,0.71,135.54,135.51,14.19414534]
[1764087513834,8.80994492,135.53,135.5,14.19452787]
[1764087514036,12.08994492,135.53,135.5,14.19452787]
[1764087514242,0.71,135.52,135.48,25.83303073]
[1764087514747,0.71,135.52,135.48,32.64764689]
[1764087514953,7.52461616,135.52,135.48,7.38068105]
[1764087515650,7.52461616,135.52,135.48,6.81461616]
[1764087515651,0.71,135.52,135.48,6.81461616]
[1764087515856,6.81461616,135.56,135.51,6.81461616]
[1764087516036,3.28,135.56,135.52,6.81461616]
[1764087516220,3.28,135.56,135.53,6.81461616]
[1764087516622,3.99,135.56,135.53,6.81461616]
[1764087516851,3.99,135.56,135.51,0.66]
[1764087516852,3.28,135.56,135.52,6.81461616]
[1764087517054,0.71,135.55,135.52,6.81461616]
[1764087517818,0.71,135.55,135.52,14.19335371]
[1764087518235,3.28,135.56,135.52,32.64081533]
[1764087518452,3.99,135.56,135.52,32.64081533]
[1764087518758,3.99,135.56,135.53,6.81461616]
[1764087518932,0.1,135.57,135.55,6.81461616]
[1764087519435,0.1,135.57,135.56,6.81461616]
[1764087519830,0.1,135.57,135.56,14.19142347]
[1764087520036,0.1,135.57,135.56,7.37680731]
[1764087520557,0.1,135.57,135.56,14.19142347]
[1764087520861,0.1,135.57,135.56,14.85142347]
[1764087521239,0.1,135.57,135.56,14.19142347]
[1764087521636,0.1,135.57,135.56,14.85142347]
[1764087521947,0.1,135.57,135.56,18.13142347]
[1764087522155,3.99,135.63,135.56,73.45747834]
[1764087522356,0.71,135.67,135.62,6.81461616]
[1764087522675,10.64732226,135.65,135.61,10.64732226]
[1764087522845,10.64732226,135.65,135.58,81.388864]
[1764087522846,8.80994492,135.62,135.58,10.64732226]
[1764087523178,8.80994492,135.62,135.56,29.7588256]
[1764087523179,10.64732226,135.61,135.56,36.46614786]
[1764087523324,11.35732226,135.61,135.57,10.64732226]
[1764087523525,11.35732226,135.6,135.56,7.37680731]
[1764087523957,11.35732226,135.6,135.56,10.64732226]
[1764087524362,0.71,135.59,135.55,7.37735153]
[1764087524532,14.63732226,135.59,135.55,7.37735153]
[1764087524733,3.99,135.59,135.56,10.64732226]
[1764087525256,3.28,135.59,135.56,10.64732226]
[1764087525440,3.99,135.59,135.56,10.64732226]
[1764087525828,3.28,135.59,135.57,7.37626318]
[1764087526030,3.28,135.59,135.57,18.68358544]
[1764087526238,22.73726718,135.62,135.57,37.1242434]
[1764087526465,12.79994492,135.62,135.58,10.64732226]
[1764087526665,12.79994492,135.62,135.58,72.44732226]
[1764087526855,3.28,135.62,135.59,10.64732226]
[1764087527262,3.28,135.62,135.58,61.8]
[1764087527263,3.99,135.62,135.58,72.44732226]
[1764087527651,3.99,135.62,135.58,61.8]
[1764087527846,0.71,135.61,135.59,7.37517516]
[1764087528046,0.71,135.61,135.58,7.37558994]
[1764087528362,11.35732226,135.61,135.58,7.37558994]
[1764087528540,0.71,135.61,135.58,7.37558994]
[1764087530146,8.80994492,135.6,135.56,10.64732226]
[1764087530346,19.45726718,135.6,135.55,18.02455978]
[1764087530546,19.45726718,135.6,135.5,139.00031345]
[1764087530547,19.45726718,135.58,135.5,37.56031345]
[1764087530756,19.45726718,135.58,135.53,10.64732226]
[1764087530978,0.71,135.57,135.53,10.64732226]
[1764087531277,0.71,135.57,135.53,26.95618626]
[1764087531476,0.71,135.57,135.53,10.64732226]
[1764087531664,11.35732226,135.57,135.52,10.64732226]
[1764087531972,0.71,135.57,135.54,7.37789582]
[1764087532271,3.28,135.59,135.55,10.64732226]
[1764087532272,3.99,135.59,135.55,10.64732226]
[1764087532473,3.99,135.59,135.56,10.64732226]
[1764087532771,3.99,135.59,135.55,10.64732226]
[1764087533876,3.28,135.59,135.55,10.64732226]
[1764087534051,3.99,135.59,135.55,10.64732226]
[1764087534564,3.28,135.59,135.57,10.64732226]
[1764087534878,3.28,135.59,135.56,18.02412957]
[1764087535050,3.28,135.59,135.56,36.46614786]
[1764087535557,3.28,135.59,135.57,10.64732226]
[1764087536174,3.28,135.59,135.57,11.30732226]
[1764087536383,3.99,135.59,135.56,7.37680731]
[1764087536590,3.28,135.59,135.56,7.37680731]
[1764087536754,3.99,135.59,135.56,7.37680731]
[1764087537591,3.99,135.59,135.56,18.02412957]
[1764087537878,3.99,135.59,135.56,7.37680731]
[1764087538667,3.99,135.59,135.56,18.02412957]
[1764087538972,3.99,135.59,135.56,36.46614786]
[1764087539560,3.28,135.59,135.57,11.31732226]
[1764087539761,3.28,135.59,135.58,10.64732226]
[1764087540481,9.46994492,135.62,135.59,25.81311306]
[1764087540482,3.94,135.62,135.59,25.81311306]
[1764087540679,0.66,135.61,135.59,61.8]
[1764087540883,0.66,135.61,135.57,34.33244944]
[1764087541083,0.66,135.61,135.57,53.4431074]
[1764087541284,8.80994492,135.64,135.6,10.64732226]
[1764087541583,0.66,135.68,135.63,10.64732226]
[1764087541783,10.64732226,135.64,135.61,16.308864]
[1764087541958,3.28,135.64,135.59,10.64732226]
[1764087542154,3.28,135.64,135.6,10.64732226]
[1764087542377,3.28,135.64,135.62,10.64732226]
[1764087542583,14.58732226,135.67,135.63,7.37300007]
[1764087542769,0.66,135.66,135.63,25.80550025]
[1764087542962,0.66,135.66,135.63,7.37300007]
[1764087543163,11.30732226,135.66,135.63,7.37300007]
[1764087543559,3.28,135.67,135.63,18.02032233]
[1764087543765,3.28,135.67,135.64,10.64732226]
[1764087544066,14.58732226,135.67,135.63,36.45282251]
[1764087544274,0.66,135.66,135.63,18.02032233]
[1764087544677,3.28,135.67,135.63,36.45282251]
[1764087544878,3.94,135.67,135.63,37.12282251]
[1764087545296,3.28,135.67,135.66,10.64732226]
[1764087545468,0.66,135.69,135.66,10.64732226]
[1764087545966,3.28,135.7,135.66,10.64732226]
[1764087546166,0.66,135.73,135.67,0.67]
[1764087546386,0.66,135.73,135.69,10.64732226]
[1764087546574,0.66,135.73,135.69,18.01674477]
[1764087546773,11.30732226,135.73,135.69,7.36942251]
[1764087547185,0.66,135.72,135.69,7.36942251]
[1764087548294,9.46994492,135.74,135.7,10.64732226]
[1764087548590,0.1,135.76,135.73,18.01489022]
[1764087548789,0.1,135.76,135.74,10.64732226]
[1764087548995,11.40732226,135.76,135.73,7.36756796]
[1764087549196,0.76,135.76,135.73,7.36756796]
[1764087549406,0.66,135.75,135.73,7.36756796]
[1764087549574,0.66,135.75,135.7,13.92732226]
[1764087549769,8.80994492,135.72,135.66,0.67]
[1764087549992,19.45726718,135.72,135.67,10.64732226]
[1764087550172,0.66,135.72,135.66,0.67]
[1764087550370,10.64732226,135.69,135.64,25.80359775]
[1764087550674,10.64732226,135.68,135.64,25.80359775]
[1764087550991,10.64732226,135.67,135.64,7.3724565]
[1764087551178,3.28,135.7,135.65,0.67]
[1764087551376,0.66,135.71,135.66,10.64732226]
[1764087551584,10.64732226,135.71,135.66,10.64732226]
[1764087551898,10.64732226,135.71,135.65,0.67]
[1764087551899,0.66,135.7,135.64,36.45092001]
[1764087552081,10.64732226,135.69,135.65,10.64732226]
[1764087552472,10.64732226,135.69,135.64,7.3724565]
[1764087552473,0.66,135.68,135.64,7.3724565]
[1764087552788,10.64732226,135.69,135.65,11.31732226]
[1764087552995,11.30732226,135.72,135.67,10.64732226]
[1764087553376,0.66,135.71,135.67,11.31732226]
[1764087553776,0.66,135.71,135.67,10.64732226]
[1764087553981,0.66,135.7,135.67,10.64732226]
[1764087554302,10.92754174,135.7,135.65,10.64732226]
[1764087554478,12.08994492,135.73,135.65,10.64732226]
[1764087554479,10.64732226,135.69,135.65,0.67]
[1764087554677,10.64732226,135.69,135.66,7.3713696]
[1764087555072,10.64732226,135.7,135.66,7.3713696]
[1764087555499,10.64732226,135.69,135.65,7.37178508]
[1764087556293,0.66,135.68,135.65,7.37178508]
[1764087556804,10.64732226,135.67,135.62,10.64732226]
[1764087557182,11.30732226,135.67,135.63,7.37295774]
[1764087557783,0.66,135.67,135.63,37.12278018]
[1764087558086,0.66,135.66,135.63,7.37295774]
[1764087558890,18.01775199,135.68,135.63,18.02028]
[1764087559099,14.58732226,135.69,135.64,10.64732226]
[1764087559275,0.66,135.68,135.63,26.47545792]
[1764087559475,0.66,135.68,135.64,10.64732226]
[1764087559699,11.30732226,135.68,135.63,37.12278018]
[1764087559978,19.45726718,135.67,135.63,7.37295774]
[1764087560229,10.64732226,135.66,135.61,61.8]
[1764087560502,11.30732226,135.66,135.61,79.82118112]
[1764087560706,11.30732226,135.66,135.61,80.49118112]
[1764087560707,0.66,135.65,135.61,80.49118112]
[1764087561085,0.66,135.65,135.61,18.69118112]
[1764087561501,0.66,135.65,135.61,8.04385886]
[1764087561679,0.66,135.65,135.61,37.12639976]
[1764087563191,0.66,135.65,135.61,26.4790775]
[1764087563401,0.66,135.65,135.61,37.12639976]
[1764087563818,19.45726718,135.64,135.6,732.3744406]
[1764087564026,10.64732226,135.62,135.6,725.0]
[1764087564533,0.67,135.61,135.6,725.0]
[1764087564720,11.31732226,135.61,135.6,725.0]
[1764087564924,10.64732226,135.62,135.6,725.0]
[1764087565424,7.37331477,135.63,135.6,725.0]
[1764087565614,11.31732226,135.62,135.6,725.0]
[1764087566234,0.67,135.62,135.6,732.37462789]
[1764087566598,22.73726718,135.65,135.6,743.02195015]
[1764087566803,0.67,135.64,135.61,10.64732226]
[1764087567005,0.67,135.64,135.6,733.05462789]
[1764087567006,22.73726718,135.65,135.6,761.45852832]
[1764087567206,3.28,135.65,135.61,11.32732226]
[1764087567407,10.64732226,135.7,135.64,10.64732226]
[1764087567630,10.64732226,135.7,135.61,4.69740874]
[1764087567631,13.92732226,135.7,135.65,10.64732226]
[1764087567809,9.47994492,135.69,135.62,0.68]
[1764087568010,10.64732226,135.68,135.63,10.64732226]
[1764087568210,11.31732226,135.68,135.63,10.64732226]
[1764087568433,0.67,135.68,135.64,10.64732226]
[1764087568635,0.67,135.68,135.65,7.37191301]
[1764087569019,0.67,135.73,135.66,0.68]
[1764087569350,8.80994492,135.72,135.68,10.64732226]
[1764087569636,10.64732226,135.71,135.66,10.64732226]
[1764087569844,19.45726718,135.7,135.65,7.37191301]
[1764087570142,20.12726718,135.7,135.65,18.01923527]
[1764087570434,0.67,135.69,135.65,18.01923527]
[1764087571011,0.67,135.69,135.65,36.44901779]
[1764087572929,0.67,135.69,135.66,10.64732226]
[1764087573641,0.67,135.69,135.65,37.12901779]
[1764087574827,0.67,135.69,135.65,36.44901779]
[1764087575029,19.45726718,135.68,135.64,7.3723884]
[1764087575418,3.95,135.67,135.64,7.3723884]
[1764087577320,3.95,135.67,135.63,18.02032233]
[1764087577519,3.95,135.67,135.63,8.05300007]
[1764087577749,3.95,135.67,135.63,18.70032233]
[1764087578245,3.95,135.67,135.62,7.37329196]
[1764087578246,11.31732226,135.66,135.62,7.37329196]
[1764087578417,10.64732226,135.65,135.62,7.37329196]
[1764087578734,11.31732226,135.65,135.62,7.37329196]
[1764087578936,3.95,135.64,135.62,7.37329196]
[1764087579944,0.67,135.63,135.6,725.0]
[1764087580635,3.28,135.64,135.61,11.32732226]
[1764087580840,3.95,135.64,135.61,10.64732226]
[1764087581056,0.67,135.63,135.6,743.02163596]
[1764087581221,3.28,135.64,135.6,733.0543137]
[1764087581556,3.95,135.64,135.6,743.70163596]
[1764087581856,3.95,135.64,135.6,762.13821413]
[1764087582517,3.28,135.64,135.62,6.79509923]
[1764087582723,3.28,135.64,135.63,6.79509923]
[1764087582946,3.28,135.64,135.62,6.79509923]
[1764087583331,3.28,135.64,135.63,7.37300007]
[1764087584356,3.28,135.68,135.63,33.28059948]
[1764087584647,0.67,135.72,135.67,6.79509923]
[1764087584832,0.67,135.72,135.68,6.79509923]
[1764087585356,0.67,135.72,135.69,7.36973984]
[1764087586159,10.07509923,135.73,135.69,25.79408946]
[1764087586331,10.74509923,135.73,135.69,33.26918869]
[1764087586523,3.95,135.73,135.69,33.26918869]
[1764087586867,3.28,135.73,135.7,6.79509923]
[1764087587041,16.408864,135.76,135.71,6.79509923]
[1764087587042,10.17509923,135.76,135.71,6.79509923]
[1764087587238,10.84509923,135.76,135.71,6.79509923]
[1764087587443,0.67,135.75,135.72,7.36811081]
[1764087590832,3.38,135.76,135.72,14.84321004]
[1764087591035,4.05,135.76,135.72,14.84321004]
[1764087591253,0.67,135.75,135.72,7.36811081]
[1764087592955,7.46509923,135.75,135.72,7.36811081]
[1764087593643,10.17509923,135.76,135.72,8.06811081]
[1764087593844,4.04,135.76,135.72,14.86321004]
[1764087594164,10.83509923,135.76,135.72,8.06811081]
[1764087594348,0.66,135.75,135.72,8.06811081]
[1764087595026,0.66,135.75,135.72,7.36811081]
[1764087596759,10.17509923,135.76,135.72,8.06811081]
[1764087596959,0.66,135.75,135.72,8.06811081]
[1764087597340,0.66,135.75,135.72,7.36811081]
[1764087597843,7.45509923,135.75,135.72,7.36811081]
[1764087598058,0.66,135.75,135.72,7.36811081]
[1764087598355,0.66,135.74,135.71,7.36844255]
[1764087598545,0.66,135.74,135.71,8.06844255]
[1764087598860,7.45509923,135.74,135.71,7.36844255]
[1764087599029,3.28,135.73,135.71,7.36844255]
[1764087599458,3.28,135.73,135.72,8.05811081]
[1764087599758,3.28,135.73,135.72,7.36811081]
[1764087600257,3.28,135.73,135.7,6.79509923]
[1764087600459,3.28,135.73,135.67,3.28]
[1764087600659,4.0,135.73,135.69,2.85051254]
[1764087601055,4.0,135.73,135.7,2.85051254]
[1764087601460,4.0,135.73,135.71,7.36865374]
[1764087601866,4.0,135.73,135.7,7.36901452]
[1764087602258,3.28,135.73,135.7,29.33251895]
[1764087602465,3.28,135.73,135.71,3.54051254]
[1764087602792,3.38,135.76,135.72,2.85051254]
[1764087603081,3.38,135.76,135.72,3.54051254]
[1764087603253,4.1,135.76,135.72,3.54051254]
[1764087603581,0.72,135.75,135.73,7.36756796]
[1764087604168,3.38,135.76,135.73,8.05756796]
[1764087604365,3.38,135.76,135.73,72.7080805]
[1764087604672,3.38,135.76,135.74,3.54051254]
[1764087605344,3.38,135.76,135.73,87.58648787]
[1764087605345,0.72,135.75,135.73,87.58648787]
[1764087605545,4.1,135.76,135.73,25.78648787]
[1764087606761,3.38,135.76,135.74,3.54051254]
[1764087606968,3.38,135.76,135.73,29.32700041]
[1764087607474,3.38,135.76,135.74,3.54051254]
[1764087607773,3.38,135.76,135.74,2.85051254]
[1764087607950,3.38,135.76,135.74,3.54051254]
[1764087608862,3.38,135.76,135.75,7.3664825]
[1764087609270,0.1,135.76,135.75,10.90699504]
[1764087610181,0.1,135.76,135.75,72.70699504]
[1764087611676,0.1,135.79,135.75,127.95561382]
[1764087611876,0.1,135.79,135.78,2.85051254]
[1764087612195,1e-08,135.79,135.78,64.65051254]
[1764087612366,1e-08,135.79,135.78,3.54051254]
[1764087613204,1e-08,135.81,135.79,0.69]
[1764087613362,1e-08,135.81,135.8,6.13051254]
[1764087613766,1e-08,135.81,135.8,6.82051254]
[1764087615393,1e-08,135.81,135.8,14.18428279]
[1764087615996,1e-08,135.81,135.8,17.03479533]
[1764087616199,1e-08,135.81,135.8,10.90428279]
[1764087617268,1e-08,135.81,135.8,7.36377025]
[1764087617468,1e-08,135.81,135.8,10.21428279]
[1764087617692,1e-08,135.81,135.8,10.90428279]
[1764087618489,1e-08,135.81,135.8,14.18428279]
[1764087618681,1e-08,135.81,135.8,17.03479533]
[1764087619799,1e-08,135.81,135.8,14.18428279]
[1764087620496,1e-08,135.81,135.8,17.03479533]
[1764087622786,1e-08,135.81,135.8,14.18428279]
[1764087623812,1e-08,135.81,135.8,17.03479533]
[1764087624300,1e-08,135.81,135.8,14.18428279]
[1764087624690,1e-08,135.81,135.8,17.03479533]
[1764087624883,2.60533913,135.89,135.83,16.308864]
[1764087625077,2.60533913,135.89,135.88,2.85051254]
[1764087625483,3.27533913,135.89,135.88,2.85051254]
[1764087625694,3.27533913,135.89,135.86,3.28]
[1764087625695,3.27533913,135.89,135.86,2.85051254]
[1764087625898,0.67,135.88,135.86,10.2106467]
[1764087626275,0.67,135.88,135.85,7.36085807]
[1764087626477,3.52051254,135.88,135.85,7.36085807]
[1764087627004,0.67,135.87,135.85,7.36085807]
[1764087627378,0.67,135.87,135.83,2.85051254]